[Event "Late-Titled-Tuesday-Blitz-April-23-2024"]
[Site "Chess.com"]
[Date "2024.04.23"]
[Round "6"]
[White "Byniolus"]
[Black "nihalsarin"]
[Result "0-1"]
[WhiteElo "2806"]
[BlackElo "3134"]
[TimeControl "180+1"]
[EndTime "15:08:22 PDT"]
[Termination "nihalsarin won on time"]

1. d4 {[%clk 0:03:00.9]} 1... b5 {[%clk 0:02:49.6]} 2. Bf4 {[%clk 0:02:59.3]}
2... a5 {[%clk 0:02:45.3]} 3. e3 {[%clk 0:02:59.2]} 3... b4 {[%clk 0:02:43.8]}
4. Nf3 {[%clk 0:02:59.2]} 4... Nf6 {[%clk 0:02:43.5]} 5. h3 {[%clk 0:02:57.8]}
5... e6 {[%clk 0:02:43.7]} 6. Be2 {[%clk 0:02:57]} 6... Bd6 {[%clk 0:02:43.3]}
7. Bxd6 {[%clk 0:02:55.5]} 7... cxd6 {[%clk 0:02:44.2]} 8. O-O {[%clk 0:02:56]}
8... O-O {[%clk 0:02:44.4]} 9. a3 {[%clk 0:02:56.1]} 9... Bb7 {[%clk 0:02:43.6]}
10. Nbd2 {[%clk 0:02:52.5]} 10... Nc6 {[%clk 0:02:40.8]} 11. c4 {[%clk
0:02:33.6]} 11... bxc3 {[%clk 0:02:37.1]} 12. bxc3 {[%clk 0:02:34.5]} 12... a4
{[%clk 0:02:31]} 13. Qc2 {[%clk 0:02:29.1]} 13... Qc7 {[%clk 0:02:29]} 14. c4
{[%clk 0:02:25.4]} 14... h6 {[%clk 0:02:21.4]} 15. Rfc1 {[%clk 0:02:25.1]} 15...
Rfb8 {[%clk 0:02:21.3]} 16. c5 {[%clk 0:02:17.4]} 16... Na5 {[%clk 0:02:18.1]}
17. Qxa4 {[%clk 0:01:55.4]} 17... Bd5 {[%clk 0:01:46]} 18. Qc2 {[%clk
0:01:47.6]} 18... Rc8 {[%clk 0:01:39.6]} 19. e4 {[%clk 0:01:40.7]} 19... Bb7
{[%clk 0:01:32.8]} 20. Qd3 {[%clk 0:01:34.5]} 20... dxc5 {[%clk 0:00:57.7]} 21.
Rxc5 {[%clk 0:01:35.4]} 21... Qf4 {[%clk 0:00:57.8]} 22. Rxc8+ {[%clk
0:01:05.1]} 22... Rxc8 {[%clk 0:00:58.7]} 23. g3 {[%clk 0:00:52.1]} 23... Qb8
{[%clk 0:00:49.7]} 24. e5 {[%clk 0:00:32.9]} 24... Ne8 {[%clk 0:00:35.1]} 25.
Ne4 {[%clk 0:00:26.5]} 25... Bd5 {[%clk 0:00:35]} 26. Nc5 {[%clk 0:00:22.6]}
26... d6 {[%clk 0:00:35]} 27. exd6 {[%clk 0:00:21.5]} 27... Nxd6 {[%clk
0:00:34.7]} 28. Ne5 {[%clk 0:00:20.9]} 28... Nf5 {[%clk 0:00:35.1]} 29. Bg4
{[%clk 0:00:13]} 29... Rxc5 {[%clk 0:00:30.7]} 30. Bxf5 {[%clk 0:00:11.5]} 30...
exf5 {[%clk 0:00:30.5]} 31. dxc5 {[%clk 0:00:11.4]} 31... Qxe5 {[%clk
0:00:31.2]} 32. Rd1 {[%clk 0:00:05.7]} 32... Bc6 {[%clk 0:00:24.2]} 33. Qd8+
{[%clk 0:00:04.3]} 33... Kh7 {[%clk 0:00:24.7]} 34. Qd4 {[%clk 0:00:02]} 34...
Qe2 {[%clk 0:00:20.2]} 35. Qd3 {[%clk 0:00:01.3]} 35... Qh5 {[%clk 0:00:20.9]}
36. Qf1 {[%clk 0:00:01.1]} 36... Qf3 {[%clk 0:00:18]} 37. Kh2 {[%clk 0:00:02]}
37... Be4 {[%clk 0:00:18.5]} 38. Re1 {[%clk 0:00:02]} 38... f4 {[%clk
0:00:17.5]} 39. g4 {[%clk 0:00:01.2]} 39... Nc6 {[%clk 0:00:18.1]} 40. Qh1
{[%clk 0:00:01.3]} 40... Qxf2+ {[%clk 0:00:17.9]} 0-1

[Event "Late-Titled-Tuesday-Blitz-April-23-2024"]
[Site "Chess.com"]
[Date "2024.04.23"]
[Round "6"]
[White "amanmuhammethommadov"]
[Black "rasmussvane"]
[Result "1-0"]
[WhiteElo "2739"]
[BlackElo "2947"]
[TimeControl "180+1"]
[EndTime "15:08:22 PDT"]
[Termination "amanmuhammethommadov won on time"]

1. e4 {[%clk 0:03:00.7]} 1... c6 {[%clk 0:02:59.8]} 2. d4 {[%clk 0:03:00.8]}
2... d5 {[%clk 0:03:00.7]} 3. exd5 {[%clk 0:03:01.4]} 3... cxd5 {[%clk
0:03:01.6]} 4. Bd3 {[%clk 0:03:02]} 4... Nc6 {[%clk 0:03:00.7]} 5. c3 {[%clk
0:03:02.4]} 5... Nf6 {[%clk 0:03:00.1]} 6. Bf4 {[%clk 0:03:02.8]} 6... Bg4
{[%clk 0:02:58.6]} 7. Qb3 {[%clk 0:03:03.1]} 7... Qd7 {[%clk 0:02:58.6]} 8. Nd2
{[%clk 0:03:03.4]} 8... e6 {[%clk 0:02:58.7]} 9. Ngf3 {[%clk 0:03:03.9]} 9...
Bd6 {[%clk 0:02:58.4]} 10. Bxd6 {[%clk 0:03:04.2]} 10... Qxd6 {[%clk 0:02:58.4]}
11. O-O {[%clk 0:03:05.1]} 11... O-O {[%clk 0:02:58.4]} 12. Rfe1 {[%clk
0:03:05.5]} 12... Bf5 {[%clk 0:02:41.8]} 13. Bxf5 {[%clk 0:02:52]} 13... exf5
{[%clk 0:02:41.5]} 14. Ne5 {[%clk 0:02:52.2]} 14... Ne4 {[%clk 0:02:34.8]} 15.
Nf1 {[%clk 0:02:49.9]} 15... Rab8 {[%clk 0:02:12.5]} 16. Nd3 {[%clk 0:02:46.7]}
16... b6 {[%clk 0:02:02.1]} 17. Ne3 {[%clk 0:02:46.2]} 17... Ne7 {[%clk
0:01:59.7]} 18. f3 {[%clk 0:02:45.1]} 18... Nf6 {[%clk 0:01:57.5]} 19. Qb4
{[%clk 0:02:44.9]} 19... Qc7 {[%clk 0:01:49.6]} 20. a4 {[%clk 0:02:39.4]} 20...
g6 {[%clk 0:01:46.3]} 21. a5 {[%clk 0:02:34.9]} 21... Rfe8 {[%clk 0:01:35.7]}
22. axb6 {[%clk 0:02:33]} 22... axb6 {[%clk 0:01:36.6]} 23. Qb5 {[%clk
0:02:32.7]} 23... f4 {[%clk 0:01:32.9]} 24. Nc2 {[%clk 0:02:28.7]} 24... Nf5
{[%clk 0:01:25.9]} 25. Ne5 {[%clk 0:02:27.4]} 25... Re6 {[%clk 0:01:21.4]} 26.
Qd3 {[%clk 0:02:12.5]} 26... Rbe8 {[%clk 0:01:17.8]} 27. Qd2 {[%clk 0:02:12.5]}
27... Nh5 {[%clk 0:01:10.1]} 28. Nb4 {[%clk 0:00:58.5]} 28... Qd6 {[%clk
0:00:42.9]} 29. Qc2 {[%clk 0:00:42.1]} 29... Nxd4 {[%clk 0:00:39.9]} 30. cxd4
{[%clk 0:00:39.5]} 30... Qxb4 {[%clk 0:00:39.2]} 31. Qc3 {[%clk 0:00:37.9]}
31... Qe7 {[%clk 0:00:39.5]} 32. Qb3 {[%clk 0:00:29.4]} 32... Qd6 {[%clk
0:00:34.4]} 33. Qb5 {[%clk 0:00:19.4]} 33... Ng7 {[%clk 0:00:26.6]} 34. Nd3
{[%clk 0:00:17.8]} 34... Nf5 {[%clk 0:00:25.4]} 35. Qxe8+ {[%clk 0:00:15]} 35...
Rxe8 {[%clk 0:00:21.9]} 36. Rxe8+ {[%clk 0:00:15.9]} 36... Kg7 {[%clk
0:00:22.6]} 37. Ra7 {[%clk 0:00:16.8]} 37... Nxd4 {[%clk 0:00:12.1]} 38. Ree7
{[%clk 0:00:16.9]} 38... Qf6 {[%clk 0:00:03.9]} 39. Ne5 {[%clk 0:00:17.1]} 39...
Qh4 {[%clk 0:00:02.9]} 40. Rxf7+ {[%clk 0:00:16.6]} 1-0

[Event "Late-Titled-Tuesday-Blitz-April-23-2024"]
[Site "Chess.com"]
[Date "2024.04.23"]
[Round "6"]
[White "Zhigalko_Sergei"]
[Black "PavlovDanila"]
[Result "0-1"]
[WhiteElo "2882"]
[BlackElo "2604"]
[TimeControl "180+1"]
[EndTime "15:08:23 PDT"]
[Termination "PavlovDanila won by checkmate"]

1. e4 {[%clk 0:03:00.9]} 1... e6 {[%clk 0:02:59.4]} 2. d4 {[%clk 0:03:00]} 2...
d5 {[%clk 0:02:59.4]} 3. e5 {[%clk 0:03:00.5]} 3... c5 {[%clk 0:02:59.6]} 4. c3
{[%clk 0:03:01]} 4... Qa5 {[%clk 0:02:59.9]} 5. Nf3 {[%clk 0:02:58.6]} 5... cxd4
{[%clk 0:02:59.2]} 6. Qxd4 {[%clk 0:02:59.5]} 6... Nc6 {[%clk 0:02:59.3]} 7. Qf4
{[%clk 0:03:00.1]} 7... Nge7 {[%clk 0:02:54.6]} 8. Bd3 {[%clk 0:03:00.2]} 8...
Qc7 {[%clk 0:02:52.5]} 9. O-O {[%clk 0:02:55.6]} 9... Ng6 {[%clk 0:02:51.3]} 10.
Bxg6 {[%clk 0:02:54.3]} 10... hxg6 {[%clk 0:02:52.2]} 11. c4 {[%clk 0:02:53.4]}
11... dxc4 {[%clk 0:02:13.3]} 12. Nc3 {[%clk 0:02:52]} 12... a6 {[%clk
0:02:12.3]} 13. Qxc4 {[%clk 0:02:48.2]} 13... b5 {[%clk 0:02:08.1]} 14. Qf4
{[%clk 0:02:48.1]} 14... Be7 {[%clk 0:01:54.6]} 15. Be3 {[%clk 0:02:29.7]} 15...
g5 {[%clk 0:01:36.7]} 16. Qg3 {[%clk 0:02:21]} 16... g4 {[%clk 0:01:27.7]} 17.
Qxg4 {[%clk 0:02:18.2]} 17... Nxe5 {[%clk 0:01:27.6]} 18. Nxe5 {[%clk
0:02:14.4]} 18... Qxe5 {[%clk 0:01:28.5]} 19. Bf4 {[%clk 0:02:12.1]} 19... Qf5
{[%clk 0:01:12.8]} 20. Qxg7 {[%clk 0:01:51.4]} 20... Bf6 {[%clk 0:01:11.4]} 21.
Qg3 {[%clk 0:01:51.3]} 21... Bb7 {[%clk 0:01:11.1]} 22. Rad1 {[%clk 0:01:45.3]}
22... Qh7 {[%clk 0:00:58.7]} 23. f3 {[%clk 0:01:30.6]} 23... Bh4 {[%clk
0:00:37.4]} 24. Qg4 {[%clk 0:01:28.2]} 24... f5 {[%clk 0:00:16.7]} 25. Qh3
{[%clk 0:01:28.4]} 25... Qg7 {[%clk 0:00:15.3]} 26. g3 {[%clk 0:01:16]} 26...
Bg5 {[%clk 0:00:15]} 27. Qg2 {[%clk 0:01:16.1]} 27... Bxf4 {[%clk 0:00:15.2]}
28. gxf4 {[%clk 0:01:17]} 28... Qh7 {[%clk 0:00:15.8]} 29. Kh1 {[%clk
0:00:56.9]} 29... Rd8 {[%clk 0:00:14.1]} 30. Rde1 {[%clk 0:00:43.2]} 30... Kf7
{[%clk 0:00:14.5]} 31. Re2 {[%clk 0:00:29.3]} 31... Rdg8 {[%clk 0:00:12.2]} 32.
Qf2 {[%clk 0:00:29.4]} 32... Qh3 {[%clk 0:00:08.8]} 33. a3 {[%clk 0:00:10]}
33... Rg3 {[%clk 0:00:08.8]} 34. Ne4 {[%clk 0:00:09.4]} 34... Rxf3 {[%clk
0:00:03.2]} 35. Qxf3 {[%clk 0:00:08.9]} 35... Bxe4 {[%clk 0:00:03.7]} 36. Rxe4
{[%clk 0:00:07.9]} 36... Qxh2# {[%clk 0:00:04.1]} 0-1

[Event "Late-Titled-Tuesday-Blitz-April-23-2024"]
[Site "Chess.com"]
[Date "2024.04.23"]
[Round "6"]
[White "AlexeiShirov"]
[Black "Slovak_fighter2000"]
[Result "1-0"]
[WhiteElo "2804"]
[BlackElo "2544"]
[TimeControl "180+1"]
[EndTime "15:08:23 PDT"]
[Termination "AlexeiShirov won on time"]

1. e4 {[%clk 0:03:00.9]} 1... e6 {[%clk 0:03:00.2]} 2. d4 {[%clk 0:03:00.1]}
2... d5 {[%clk 0:03:00.8]} 3. e5 {[%clk 0:03:00.7]} 3... c5 {[%clk 0:03:00.2]}
4. c3 {[%clk 0:03:01.1]} 4... Qb6 {[%clk 0:03:00.2]} 5. Nf3 {[%clk 0:03:01.3]}
5... Bd7 {[%clk 0:03:00.7]} 6. a3 {[%clk 0:02:57.1]} 6... Bb5 {[%clk 0:02:56.2]}
7. b4 {[%clk 0:02:46.6]} 7... cxd4 {[%clk 0:02:50.8]} 8. Bxb5+ {[%clk
0:02:45.4]} 8... Qxb5 {[%clk 0:02:50.9]} 9. cxd4 {[%clk 0:02:44.3]} 9... Ne7
{[%clk 0:02:45.2]} 10. Nc3 {[%clk 0:02:42.6]} 10... Qd7 {[%clk 0:02:37.9]} 11.
O-O {[%clk 0:02:32.8]} 11... Nc8 {[%clk 0:02:34.8]} 12. Ng5 {[%clk 0:02:29.8]}
12... Be7 {[%clk 0:02:32.1]} 13. Qh5 {[%clk 0:02:27.1]} 13... Bxg5 {[%clk
0:02:27.3]} 14. Bxg5 {[%clk 0:02:25.4]} 14... Nc6 {[%clk 0:02:18.8]} 15. Rad1
{[%clk 0:02:23.5]} 15... a6 {[%clk 0:01:58.8]} 16. f4 {[%clk 0:02:17.2]} 16...
N6e7 {[%clk 0:01:30.5]} 17. f5 {[%clk 0:02:16.3]} 17... exf5 {[%clk 0:01:21.4]}
18. e6 {[%clk 0:02:12.9]} 18... Qxe6 {[%clk 0:01:12.1]} 19. Rde1 {[%clk
0:02:11]} 19... Qd7 {[%clk 0:00:56.5]} 20. Re3 {[%clk 0:01:46.1]} 20... O-O
{[%clk 0:00:55.8]} 21. Rh3 {[%clk 0:01:43]} 21... f6 {[%clk 0:00:48.7]} 22.
Qxh7+ {[%clk 0:01:36.7]} 22... Kf7 {[%clk 0:00:49.1]} 23. Bh6 {[%clk 0:01:35.7]}
23... Rg8 {[%clk 0:00:46.6]} 24. Rg3 {[%clk 0:01:35.1]} 24... Nd6 {[%clk
0:00:30.6]} 25. Ne2 {[%clk 0:01:08.6]} 25... Ne4 {[%clk 0:00:23.8]} 26. Rxg7+
{[%clk 0:01:05.2]} 26... Rxg7 {[%clk 0:00:24.3]} 27. Qxg7+ {[%clk 0:00:51.4]}
27... Ke6 {[%clk 0:00:24.7]} 28. Nf4+ {[%clk 0:00:49.2]} 28... Kd6 {[%clk
0:00:24.7]} 29. Nd3 {[%clk 0:00:48.6]} 29... Rg8 {[%clk 0:00:21.6]} 30. Bf4+
{[%clk 0:00:37.7]} 30... Kc6 {[%clk 0:00:15.8]} 31. Qf7 {[%clk 0:00:31.6]} 31...
Kb6 {[%clk 0:00:14.2]} 32. Nc5 {[%clk 0:00:30.6]} 32... Nxc5 {[%clk 0:00:13.4]}
33. dxc5+ {[%clk 0:00:23.2]} 33... Ka7 {[%clk 0:00:14.3]} 34. Bd6 {[%clk
0:00:22.5]} 34... Re8 {[%clk 0:00:07.6]} 35. Re1 {[%clk 0:00:22.6]} 35... f4
{[%clk 0:00:05.9]} 36. Rxe7 {[%clk 0:00:22.3]} 36... Rxe7 {[%clk 0:00:05.1]} 37.
Qxe7 {[%clk 0:00:22]} 37... Qg4 {[%clk 0:00:05.3]} 38. Qe1 {[%clk 0:00:21.2]}
38... f3 {[%clk 0:00:05.3]} 39. g3 {[%clk 0:00:20.5]} 39... Qd4+ {[%clk
0:00:04.6]} 40. Kf1 {[%clk 0:00:20.6]} 40... Qd3+ {[%clk 0:00:04.5]} 41. Kf2
{[%clk 0:00:20.9]} 41... d4 {[%clk 0:00:02.7]} 42. Qe8 {[%clk 0:00:19.6]} 42...
Qd2+ {[%clk 0:00:02.1]} 43. Kxf3 {[%clk 0:00:19.9]} 43... Qd3+ {[%clk
0:00:02.6]} 44. Kg4 {[%clk 0:00:20]} 44... Qd1+ {[%clk 0:00:01.7]} 45. Kh4
{[%clk 0:00:20.1]} 1-0

[Event "Late-Titled-Tuesday-Blitz-April-23-2024"]
[Site "Chess.com"]
[Date "2024.04.23"]
[Round "6"]
[White "CombativeWombat"]
[Black "campochess"]
[Result "1/2-1/2"]
[WhiteElo "2333"]
[BlackElo "2161"]
[TimeControl "180+1"]
[EndTime "15:08:24 PDT"]
[Termination "Game drawn by repetition"]

1. e4 {[%clk 0:03:00.9]} 1... c5 {[%clk 0:02:58.5]} 2. Nf3 {[%clk 0:03:00.9]}
2... Nc6 {[%clk 0:02:58.6]} 3. Nc3 {[%clk 0:03:00.6]} 3... Nf6 {[%clk
0:02:56.5]} 4. Bb5 {[%clk 0:02:59.5]} 4... Nd4 {[%clk 0:02:54.6]} 5. e5 {[%clk
0:02:58.7]} 5... Nxb5 {[%clk 0:02:53.5]} 6. Nxb5 {[%clk 0:02:59.6]} 6... Nd5
{[%clk 0:02:52.8]} 7. Ng5 {[%clk 0:03:00]} 7... h6 {[%clk 0:02:33.2]} 8. Qh5
{[%clk 0:01:46.6]} 8... g6 {[%clk 0:02:26.5]} 9. Qf3 {[%clk 0:01:46.4]} 9...
hxg5 {[%clk 0:02:19.3]} 10. Qxd5 {[%clk 0:01:46.4]} 10... Qb6 {[%clk 0:02:09.3]}
11. c4 {[%clk 0:01:29.7]} 11... a6 {[%clk 0:02:04.3]} 12. Nc3 {[%clk 0:01:28.7]}
12... e6 {[%clk 0:02:04.2]} 13. Qf3 {[%clk 0:01:27]} 13... d6 {[%clk 0:01:57.3]}
14. d4 {[%clk 0:01:11.2]} 14... cxd4 {[%clk 0:01:50.3]} 15. Ne4 {[%clk 0:01:11]}
15... dxe5 {[%clk 0:01:41.3]} 16. Nf6+ {[%clk 0:01:00]} 16... Kd8 {[%clk
0:01:41]} 17. Bxg5 {[%clk 0:01:00]} 17... Be7 {[%clk 0:01:41]} 18. O-O {[%clk
0:00:52.2]} 18... Bd7 {[%clk 0:01:26.7]} 19. Nxd7 {[%clk 0:00:51.3]} 19... Kxd7
{[%clk 0:01:22]} 20. Qxf7 {[%clk 0:00:40.4]} 20... Rae8 {[%clk 0:01:21.5]} 21.
Rae1 {[%clk 0:00:24]} 21... Qd6 {[%clk 0:01:17.3]} 22. f4 {[%clk 0:00:21]} 22...
Rhf8 {[%clk 0:00:57.5]} 23. Qxg6 {[%clk 0:00:20.8]} 23... exf4 {[%clk 0:00:52]}
24. Bxe7 {[%clk 0:00:19.6]} 24... Rxe7 {[%clk 0:00:51.7]} 25. Qe4 {[%clk
0:00:20.2]} 25... Kc7 {[%clk 0:00:41.2]} 26. c5 {[%clk 0:00:19.3]} 26... Qd7
{[%clk 0:00:30.1]} 27. Rxf4 {[%clk 0:00:18]} 27... Rd8 {[%clk 0:00:20.7]} 28.
Rd1 {[%clk 0:00:15.4]} 28... Kc8 {[%clk 0:00:16.5]} 29. Rxd4 {[%clk 0:00:14.4]}
29... Qe8 {[%clk 0:00:16.2]} 30. Qe5 {[%clk 0:00:13.7]} 30... Rxd4 {[%clk
0:00:14.6]} 31. Rxd4 {[%clk 0:00:14.6]} 31... Rd7 {[%clk 0:00:13.9]} 32. b4
{[%clk 0:00:13.8]} 32... Rxd4 {[%clk 0:00:13]} 33. Qxd4 {[%clk 0:00:14.7]} 33...
Qg6 {[%clk 0:00:11.9]} 34. h3 {[%clk 0:00:14.4]} 34... Qb1+ {[%clk 0:00:10.8]}
35. Kh2 {[%clk 0:00:15.1]} 35... Qxa2 {[%clk 0:00:10.8]} 36. h4 {[%clk
0:00:14.6]} 36... Qe2 {[%clk 0:00:09.2]} 37. c6 {[%clk 0:00:13.1]} 37... bxc6
{[%clk 0:00:08.4]} 38. Qd6 {[%clk 0:00:13.6]} 38... Qe4 {[%clk 0:00:06.5]} 39.
h5 {[%clk 0:00:11.3]} 39... Kb7 {[%clk 0:00:05.7]} 40. h6 {[%clk 0:00:11.1]}
40... Qh4+ {[%clk 0:00:04.5]} 41. Kg1 {[%clk 0:00:10.4]} 41... Qe1+ {[%clk
0:00:04.2]} 42. Kh2 {[%clk 0:00:10.3]} 42... Qh4+ {[%clk 0:00:04]} 43. Kg1
{[%clk 0:00:10.8]} 43... Qe1+ {[%clk 0:00:03.9]} 44. Kh2 {[%clk 0:00:11.4]}
44... Qh4+ {[%clk 0:00:03.7]} 1/2-1/2

[Event "Late-Titled-Tuesday-Blitz-April-23-2024"]
[Site "Chess.com"]
[Date "2024.04.23"]
[Round "6"]
[White "kripri"]
[Black "tarno17"]
[Result "0-1"]
[WhiteElo "2328"]
[BlackElo "2159"]
[TimeControl "180+1"]
[EndTime "15:08:32 PDT"]
[Termination "tarno17 won by checkmate"]

1. e4 {[%clk 0:03:00.9]} 1... c5 {[%clk 0:03:00.1]} 2. Nf3 {[%clk 0:02:56.5]}
2... e6 {[%clk 0:03:00.7]} 3. d4 {[%clk 0:02:56.4]} 3... cxd4 {[%clk 0:03:01.6]}
4. Nxd4 {[%clk 0:02:56.8]} 4... a6 {[%clk 0:03:02.3]} 5. Bd3 {[%clk 0:02:56.7]}
5... Bc5 {[%clk 0:03:01.5]} 6. Nb3 {[%clk 0:02:55.7]} 6... Be7 {[%clk
0:03:01.6]} 7. Qg4 {[%clk 0:02:55]} 7... g6 {[%clk 0:03:01.9]} 8. O-O {[%clk
0:02:53.6]} 8... Nf6 {[%clk 0:02:42.7]} 9. Qe2 {[%clk 0:02:52.8]} 9... d6 {[%clk
0:02:31.8]} 10. N1d2 {[%clk 0:02:47.5]} 10... Nbd7 {[%clk 0:02:29]} 11. a4
{[%clk 0:02:46.5]} 11... b6 {[%clk 0:02:17.7]} 12. Bc4 {[%clk 0:02:45]} 12...
Bb7 {[%clk 0:02:11.4]} 13. f4 {[%clk 0:02:31.1]} 13... Qc7 {[%clk 0:01:55.6]}
14. f5 {[%clk 0:02:25.7]} 14... gxf5 {[%clk 0:01:55.9]} 15. exf5 {[%clk
0:02:25.6]} 15... e5 {[%clk 0:01:56.5]} 16. Bd3 {[%clk 0:02:02.7]} 16... Qc6
{[%clk 0:01:26]} 17. Re1 {[%clk 0:01:57.2]} 17... Rg8 {[%clk 0:01:15.8]} 18. Ne4
{[%clk 0:01:44.5]} 18... Rg4 {[%clk 0:00:43.1]} 19. Ng3 {[%clk 0:01:08.8]} 19...
h5 {[%clk 0:00:23.8]} 20. Be3 {[%clk 0:00:24.1]} 20... h4 {[%clk 0:00:22.3]} 21.
Nd4 {[%clk 0:00:22.1]} 21... exd4 {[%clk 0:00:07]} 22. Bxd4 {[%clk 0:00:18]}
22... O-O-O {[%clk 0:00:07.3]} 23. Bxf6 {[%clk 0:00:13.8]} 23... Nxf6 {[%clk
0:00:05.8]} 24. Ne4 {[%clk 0:00:11.5]} 24... Rxe4 {[%clk 0:00:02.5]} 25. Bxe4
{[%clk 0:00:11.6]} 25... Nxe4 {[%clk 0:00:03.2]} 26. c3 {[%clk 0:00:11.2]} 26...
Bf6 {[%clk 0:00:02.8]} 27. a5 {[%clk 0:00:09.2]} 27... b5 {[%clk 0:00:02.9]} 28.
Rad1 {[%clk 0:00:08.7]} 28... d5 {[%clk 0:00:03.3]} 29. Qe3 {[%clk 0:00:07.6]}
29... Rg8 {[%clk 0:00:03.6]} 30. Re2 {[%clk 0:00:07.4]} 30... Bg5 {[%clk
0:00:03.5]} 31. Qd4 {[%clk 0:00:07.2]} 31... Bf4 {[%clk 0:00:03.6]} 32. Rf1
{[%clk 0:00:06.4]} 32... Bd6 {[%clk 0:00:03.6]} 33. Rd1 {[%clk 0:00:05.1]} 33...
Bc5 {[%clk 0:00:04.2]} 34. Kh1 {[%clk 0:00:05.1]} 34... Bxd4 {[%clk 0:00:04.7]}
35. Rxd4 {[%clk 0:00:05.9]} 35... Qd6 {[%clk 0:00:04.7]} 36. Rd1 {[%clk
0:00:05.1]} 36... Qf6 {[%clk 0:00:04.8]} 37. Rf1 {[%clk 0:00:05.4]} 37... Rg5
{[%clk 0:00:05.1]} 38. Kg1 {[%clk 0:00:05.7]} 38... Rxf5 {[%clk 0:00:05.7]} 39.
Rfe1 {[%clk 0:00:06.2]} 39... Rg5 {[%clk 0:00:05.8]} 40. Re3 {[%clk 0:00:06.7]}
40... Qg6 {[%clk 0:00:06.2]} 41. R3e2 {[%clk 0:00:06.9]} 41... h3 {[%clk
0:00:06.7]} 42. g3 {[%clk 0:00:07.2]} 42... Nxg3 {[%clk 0:00:07.1]} 43. hxg3
{[%clk 0:00:07.4]} 43... Rxg3+ {[%clk 0:00:07.4]} 44. Kh2 {[%clk 0:00:08]} 44...
Rg2+ {[%clk 0:00:07.5]} 45. Kxh3 {[%clk 0:00:08.3]} 45... Qg3# {[%clk
0:00:07.9]} 0-1

[Event "Late-Titled-Tuesday-Blitz-April-23-2024"]
[Site "Chess.com"]
[Date "2024.04.23"]
[Round "6"]
[White "ChessBrainiacOnTwitch"]
[Black "jlf287"]
[Result "1-0"]
[WhiteElo "2799"]
[BlackElo "2544"]
[TimeControl "180+1"]
[EndTime "15:08:38 PDT"]
[Termination "ChessBrainiacOnTwitch won on time"]

1. e4 {[%clk 0:03:00.9]} 1... e5 {[%clk 0:03:00]} 2. Nf3 {[%clk 0:03:00.7]} 2...
Nc6 {[%clk 0:03:00.7]} 3. Nc3 {[%clk 0:02:56.6]} 3... Nf6 {[%clk 0:03:00.8]} 4.
a3 {[%clk 0:02:56.9]} 4... d5 {[%clk 0:03:00]} 5. exd5 {[%clk 0:02:55.7]} 5...
Nxd5 {[%clk 0:03:00.9]} 6. Bb5 {[%clk 0:02:56.4]} 6... Nxc3 {[%clk 0:03:01.1]}
7. bxc3 {[%clk 0:02:56.7]} 7... Bd6 {[%clk 0:03:01.7]} 8. O-O {[%clk 0:02:57.3]}
8... O-O {[%clk 0:03:02.1]} 9. d3 {[%clk 0:02:58.1]} 9... Bg4 {[%clk 0:02:57.6]}
10. h3 {[%clk 0:02:58.1]} 10... Bh5 {[%clk 0:02:58.3]} 11. Re1 {[%clk
0:02:57.9]} 11... f5 {[%clk 0:02:54]} 12. a4 {[%clk 0:02:33]} 12... Qf6 {[%clk
0:02:39.6]} 13. Bd2 {[%clk 0:02:02.2]} 13... Rae8 {[%clk 0:02:23]} 14. Bc4+
{[%clk 0:01:45]} 14... Kh8 {[%clk 0:02:20.1]} 15. Bd5 {[%clk 0:01:40.3]} 15...
Ne7 {[%clk 0:02:12.1]} 16. Bxb7 {[%clk 0:01:40.1]} 16... c6 {[%clk 0:02:12.8]}
17. Bg5 {[%clk 0:01:34.9]} 17... Bxf3 {[%clk 0:01:57.3]} 18. Qd2 {[%clk
0:00:54.4]} 18... Qg6 {[%clk 0:01:52.9]} 19. gxf3 {[%clk 0:00:54.5]} 19... h6
{[%clk 0:01:52.2]} 20. h4 {[%clk 0:00:49.1]} 20... hxg5 {[%clk 0:01:46.4]} 21.
hxg5 {[%clk 0:00:50]} 21... f4 {[%clk 0:01:40.8]} 22. Kf1 {[%clk 0:00:50.3]}
22... Rb8 {[%clk 0:01:32.9]} 23. Rab1 {[%clk 0:00:50.1]} 23... Qxg5 {[%clk
0:01:13.3]} 24. Ke2 {[%clk 0:00:49.8]} 24... Rf6 {[%clk 0:01:11.3]} 25. Rg1
{[%clk 0:00:49.3]} 25... Qf5 {[%clk 0:01:08.8]} 26. Ba6 {[%clk 0:00:46.3]} 26...
Rxb1 {[%clk 0:01:07.8]} 27. Rxb1 {[%clk 0:00:47.2]} 27... Rh6 {[%clk 0:01:06.7]}
28. Bc4 {[%clk 0:00:42.9]} 28... Rh2 {[%clk 0:01:00.3]} 29. d4 {[%clk
0:00:40.8]} 29... e4 {[%clk 0:00:55]} 30. Rg1 {[%clk 0:00:37.1]} 30... Rxf2+
{[%clk 0:00:50.2]} 31. Kxf2 {[%clk 0:00:33.8]} 31... e3+ {[%clk 0:00:50.1]} 32.
Ke2 {[%clk 0:00:31.8]} 32... exd2 {[%clk 0:00:38.6]} 33. Rh1+ {[%clk 0:00:32.3]}
33... Qh7 {[%clk 0:00:37.8]} 34. Rxh7+ {[%clk 0:00:32.6]} 34... Kxh7 {[%clk
0:00:38.7]} 35. Kxd2 {[%clk 0:00:33.2]} 35... Kg6 {[%clk 0:00:32.5]} 36. Be6
{[%clk 0:00:28.6]} 36... Kf6 {[%clk 0:00:28.5]} 37. Bd7 {[%clk 0:00:29.2]} 37...
c5 {[%clk 0:00:24.5]} 38. Kd3 {[%clk 0:00:29.2]} 38... Nd5 {[%clk 0:00:14.2]}
39. Bc6 {[%clk 0:00:26.1]} 39... Nb6 {[%clk 0:00:11.7]} 40. a5 {[%clk
0:00:26.4]} 40... Nc8 {[%clk 0:00:07.4]} 41. Kc4 {[%clk 0:00:27]} 41... Ne7
{[%clk 0:00:06.5]} 42. Be4 {[%clk 0:00:16]} 42... g5 {[%clk 0:00:05.7]} 43. dxc5
{[%clk 0:00:15.3]} 43... Bc7 {[%clk 0:00:03.7]} 44. Kb5 {[%clk 0:00:16]} 44...
Ke5 {[%clk 0:00:03.5]} 45. Bb7 {[%clk 0:00:13.8]} 45... Nd5 {[%clk 0:00:01.9]}
46. c4 {[%clk 0:00:11.6]} 46... Ne3 {[%clk 0:00:01.5]} 47. a6 {[%clk 0:00:09]}
1-0